[Event "Titled Tuesday Blitz June 14 Late 2022"]
[White "Colpe, Malte"]
[Black "Ivanisevic, Ivan"]
[WhiteFideId "24623075"]
[BlackFideId "912417"]
[WhiteElo "2328"]
[BlackElo "2535"]
[Result "1-0"]
[Round "06"]
[TimeControl "180+1"]
[Date "2022.06.14"]
[WhiteClock "0:00:19"]
[BlackClock "0:00:04"]

1. e4 {[%clk 0:03:00]}  e5 {[%clk 0:02:53]} 2. Nf3 {[%clk 0:03:00]}  Nc6 {[%clk 0:02:52]} 3. Bc4 {[%clk 0:02:59]}  d6 {[%clk 0:02:48]} 4. d4 {[%clk 0:02:57]}  Nf6 {[%clk 0:02:48]} 5. d5 {[%clk 0:02:52]}  Ne7 {[%clk 0:02:31]} 6. Bd3 {[%clk 0:02:48]}  Ng6 {[%clk 0:02:30]} 7. Nc3 {[%clk 0:02:43]}  Be7 {[%clk 0:02:29]} 8. Ne2 {[%clk 0:02:43]}  c6 {[%clk 0:02:26]} 9. c4 {[%clk 0:02:42]}  O-O {[%clk 0:02:07]} 10. h3 {[%clk 0:02:40]}  Bd7 {[%clk 0:01:40]} 11. O-O {[%clk 0:02:39]}  Qb8 {[%clk 0:01:39]} 12. a4 {[%clk 0:02:35]}  a5 {[%clk 0:01:28]} 13. Be3 {[%clk 0:02:26]}  Rc8 {[%clk 0:01:27]} 14. Qd2 {[%clk 0:02:19]}  h6 {[%clk 0:01:16]} 15. Ng3 {[%clk 0:02:17]}  cxd5 {[%clk 0:01:13]} 16. exd5 {[%clk 0:02:13]}  Nf8 {[%clk 0:00:44]} 17. b3 {[%clk 0:02:05]}  Bd8 {[%clk 0:00:42]} 18. Bf5 {[%clk 0:01:51]}  Qc7 {[%clk 0:00:36]} 19. Bxh6 {[%clk 0:01:36]}  gxh6 {[%clk 0:00:19]} 20. Qxh6 {[%clk 0:01:36]}  Be8 {[%clk 0:00:15]} 21. Nh4 {[%clk 0:01:26]}  Ng6 {[%clk 0:00:13]} 22. Bxc8 {[%clk 0:00:54]}  Nxh4 {[%clk 0:00:09]} 23. Bf5 {[%clk 0:00:46]}  Ng6 {[%clk 0:00:08]} 24. h4 {[%clk 0:00:44]}  Nf4 {[%clk 0:00:05]} 25. h5 {[%clk 0:00:31]}  Qe7 {[%clk 0:00:04]} 26. Qg5+ {[%clk 0:00:30]}  Kh8 {[%clk 0:00:04]} 27. Qh6+ {[%clk 0:00:25]}  Kg8 {[%clk 0:00:04]} 28. Ne4 {[%clk 0:00:19]} 1-0


[Site "https://www.chess.com"]

[Event "Titled Tuesday Blitz June 14 Late 2022"]
[White "Hambleton, Aman"]
[Black "Sowa, Ryan"]
[WhiteFideId "2606577"]
[BlackFideId "30901693"]
[WhiteElo "2552"]
[BlackElo "2568"]
[Result "1-0"]
[Round "06"]
[TimeControl "180+1"]
[Date "2022.06.14"]
[WhiteClock "0:00:03"]
[BlackClock "0:00:38"]

1. b3 {[%clk 0:03:00]}  Nf6 {[%clk 0:02:58]} 2. Bb2 {[%clk 0:03:01]}  g6 {[%clk 0:02:59]} 3. c4 {[%clk 0:02:57]}  Bg7 {[%clk 0:02:59]} 4. g3 {[%clk 0:02:58]}  O-O {[%clk 0:02:59]} 5. Bg2 {[%clk 0:02:53]}  c5 {[%clk 0:02:57]} 6. Nf3 {[%clk 0:02:50]}  d5 {[%clk 0:02:57]} 7. cxd5 {[%clk 0:02:47]}  Qxd5 {[%clk 0:02:58]} 8. Nc3 {[%clk 0:02:23]}  Qd6 {[%clk 0:02:58]} 9. Rc1 {[%clk 0:02:21]}  Nc6 {[%clk 0:02:53]} 10. Nb5 {[%clk 0:02:00]}  Qd7 {[%clk 0:02:50]} 11. Rxc5 {[%clk 0:01:43]}  b6 {[%clk 0:02:49]} 12. Rc1 {[%clk 0:01:02]}  Ba6 {[%clk 0:02:48]} 13. a4 {[%clk 0:00:30]}  Bxb5 {[%clk 0:02:46]} 14. axb5 {[%clk 0:00:31]}  Nb4 {[%clk 0:02:47]} 15. Ne5 {[%clk 0:00:29]}  Qxb5 {[%clk 0:02:47]} 16. Bxa8 {[%clk 0:00:29]}  Rxa8 {[%clk 0:02:47]} 17. O-O {[%clk 0:00:28]}  h5 {[%clk 0:02:12]} 18. Nf3 {[%clk 0:00:25]}  h4 {[%clk 0:02:02]} 19. Nxh4 {[%clk 0:00:23]}  Qh5 {[%clk 0:02:03]} 20. Rc4 {[%clk 0:00:15]}  Nbd5 {[%clk 0:01:58]} 21. Nf3 {[%clk 0:00:10]}  Ng4 {[%clk 0:01:54]} 22. Bxg7 {[%clk 0:00:10]}  Kxg7 {[%clk 0:01:54]} 23. Kg2 {[%clk 0:00:10]}  Rh8 {[%clk 0:01:51]} 24. h4 {[%clk 0:00:10]}  Ndf6 {[%clk 0:01:44]} 25. Qa1 {[%clk 0:00:07]}  Qd5 {[%clk 0:01:43]} 26. Qd4 {[%clk 0:00:07]}  Qe6 {[%clk 0:01:42]} 27. Re1 {[%clk 0:00:02]}  b5 {[%clk 0:01:39]} 28. Rc5 {[%clk 0:00:02]}  Qxb3 {[%clk 0:01:32]} 29. Ng5 {[%clk 0:00:02]}  e5 {[%clk 0:01:24]} 30. Qd3 {[%clk 0:00:01]}  Qb4 {[%clk 0:01:22]} 31. Rc7 {[%clk 0:00:01]}  Nh6 {[%clk 0:01:18]} 32. Ne6+ {[%clk 0:00:01]}  Kh7 {[%clk 0:01:13]} 33. Ng5+ {[%clk 0:00:02]}  Kg7 {[%clk 0:01:13]} 34. Rec1 {[%clk 0:00:02]}  Re8 {[%clk 0:01:11]} 35. R1c6 {[%clk 0:00:02]}  Re7 {[%clk 0:00:52]} 36. Rxe7 {[%clk 0:00:02]}  Qxe7 {[%clk 0:00:53]} 37. Qxb5 {[%clk 0:00:02]}  Nf5 {[%clk 0:00:51]} 38. Qa6 {[%clk 0:00:02]}  Nd4 {[%clk 0:00:47]} 39. Rc3 {[%clk 0:00:02]}  Nxe2 {[%clk 0:00:42]} 40. Qxe2 {[%clk 0:00:03]}  Nd5 {[%clk 0:00:41]} 41. Rf3 {[%clk 0:00:03]}  Nf6 {[%clk 0:00:38]} 42. Ne4 {[%clk 0:00:03]} 1-0


[Site "https://www.chess.com"]

[Event "Titled Tuesday Blitz June 14 Late 2022"]
[White "Hoffmann, Asa"]
[Black "Guzman, Christopher"]
[WhiteFideId "2001470"]
[BlackFideId "6405096"]
[WhiteElo "2117"]
[BlackElo "2244"]
[Result "1/2-1/2"]
[Round "06"]
[TimeControl "180+1"]
[Date "2022.06.15"]
[WhiteClock "0:01:05"]
[BlackClock "0:00:55"]

1. d4 {[%clk 0:02:58]}  Nf6 {[%clk 0:02:59]} 2. Bg5 {[%clk 0:02:52]}  e6 {[%clk 0:02:59]} 3. Nd2 {[%clk 0:02:52]}  d5 {[%clk 0:02:59]} 4. e3 {[%clk 0:02:51]}  c5 {[%clk 0:02:59]} 5. c3 {[%clk 0:02:50]}  Nc6 {[%clk 0:02:59]} 6. f4 {[%clk 0:02:50]}  Qb6 {[%clk 0:02:59]} 7. Rb1 {[%clk 0:02:50]}  cxd4 {[%clk 0:02:57]} 8. exd4 {[%clk 0:02:49]}  Ne4 {[%clk 0:02:51]} 9. Nxe4 {[%clk 0:02:47]}  dxe4 {[%clk 0:02:52]} 10. Bc4 {[%clk 0:02:39]}  Bd6 {[%clk 0:02:46]} 11. Qe2 {[%clk 0:02:38]}  h6 {[%clk 0:02:40]} 12. Bh4 {[%clk 0:02:35]}  Bxf4 {[%clk 0:02:33]} 13. Qxe4 {[%clk 0:02:33]}  Bd6 {[%clk 0:02:17]} 14. Nf3 {[%clk 0:02:32]}  O-O {[%clk 0:02:07]} 15. O-O {[%clk 0:02:29]}  Qc7 {[%clk 0:02:07]} 16. Bd3 {[%clk 0:02:26]}  f5 {[%clk 0:02:06]} 17. Qe2 {[%clk 0:02:23]}  a6 {[%clk 0:02:03]} 18. Rbe1 {[%clk 0:02:21]}  Bd7 {[%clk 0:02:02]} 19. Bc4 {[%clk 0:02:21]}  Rae8 {[%clk 0:02:02]} 20. Bb3 {[%clk 0:02:20]}  Na5 {[%clk 0:02:02]} 21. Ne5 {[%clk 0:02:14]}  Nxb3 {[%clk 0:02:01]} 22. axb3 {[%clk 0:02:14]}  Bxe5 {[%clk 0:01:58]} 23. Qxe5 {[%clk 0:02:13]}  Qc8 {[%clk 0:01:56]} 24. Qd6 {[%clk 0:02:07]}  Qc6 {[%clk 0:01:49]} 25. Bg3 {[%clk 0:02:06]}  Qxd6 {[%clk 0:01:49]} 26. Bxd6 {[%clk 0:02:05]}  Rf7 {[%clk 0:01:49]} 27. Re5 {[%clk 0:02:04]}  Rc8 {[%clk 0:01:48]} 28. Rfe1 {[%clk 0:02:03]}  Rc6 {[%clk 0:01:48]} 29. Bb4 {[%clk 0:01:58]}  Rb6 {[%clk 0:01:47]} 30. d5 {[%clk 0:01:54]}  exd5 {[%clk 0:01:45]} 31. Rxd5 {[%clk 0:01:54]}  Bc6 {[%clk 0:01:44]} 32. Rd6 {[%clk 0:01:47]}  a5 {[%clk 0:01:41]} 33. Bxa5 {[%clk 0:01:44]}  Rxb3 {[%clk 0:01:41]} 34. Re2 {[%clk 0:01:40]}  Rb5 {[%clk 0:01:38]} 35. Bb4 {[%clk 0:01:38]}  Be4 {[%clk 0:01:38]} 36. g3 {[%clk 0:01:34]}  Kh7 {[%clk 0:01:37]} 37. Red2 {[%clk 0:01:32]}  Re5 {[%clk 0:01:35]} 38. Kf2 {[%clk 0:01:32]}  Ree7 {[%clk 0:01:34]} 39. h4 {[%clk 0:01:31]}  h5 {[%clk 0:01:27]} 40. Rd8 {[%clk 0:01:28]}  Rc7 {[%clk 0:01:23]} 41. Ke3 {[%clk 0:01:28]}  Rc4 {[%clk 0:01:13]} 42. R2d4 {[%clk 0:01:26]}  Rxd4 {[%clk 0:01:12]} 43. cxd4 {[%clk 0:01:25]}  Rc7 {[%clk 0:01:09]} 44. d5 {[%clk 0:01:24]}  Kg6 {[%clk 0:01:00]} 45. Bc3 {[%clk 0:01:22]}  Rf7 {[%clk 0:00:58]} 46. d6 {[%clk 0:01:21]}  Bc6 {[%clk 0:00:58]} 47. Kf4 {[%clk 0:01:20]}  Rd7 {[%clk 0:00:57]} 48. Rxd7 {[%clk 0:01:14]}  Bxd7 {[%clk 0:00:58]} 49. Ke5 {[%clk 0:01:14]}  Kf7 {[%clk 0:00:57]} 50. Bd2 {[%clk 0:01:13]}  g6 {[%clk 0:00:56]} 51. Bf4 {[%clk 0:01:12]}  Bc6 {[%clk 0:00:57]} 52. b4 {[%clk 0:01:11]}  Bd7 {[%clk 0:00:57]} 53. Kd4 {[%clk 0:01:09]}  Ke6 {[%clk 0:00:56]} 54. Kc5 {[%clk 0:01:09]}  Bc6 {[%clk 0:00:56]} 55. b5 {[%clk 0:01:09]}  Bf3 {[%clk 0:00:56]} 56. Kb6 {[%clk 0:01:06]}  Kd7 {[%clk 0:00:55]} 57. Kc5 {[%clk 0:01:05]}  Ke6 {[%clk 0:00:55]} 1/2-1/2


[Site "https://www.chess.com"]

[Event "Titled Tuesday Blitz June 14 Late 2022"]
[White "Holt, Conrad"]
[Black "Artemenko, Oleg"]
[WhiteFideId "2034387"]
[BlackFideId "14201798"]
[WhiteElo "2586"]
[BlackElo "2287"]
[Result "1-0"]
[Round "06"]
[TimeControl "180+1"]
[Date "2022.06.14"]
[WhiteClock "0:00:19"]
[BlackClock "0:00:09"]

1. d4 {[%clk 0:03:00]}  Nf6 {[%clk 0:02:59]} 2. c4 {[%clk 0:03:01]}  e6 {[%clk 0:02:59]} 3. Nc3 {[%clk 0:03:00]}  c5 {[%clk 0:02:57]} 4. d5 {[%clk 0:03:00]}  exd5 {[%clk 0:02:57]} 5. cxd5 {[%clk 0:03:01]}  d6 {[%clk 0:02:58]} 6. e4 {[%clk 0:03:01]}  g6 {[%clk 0:02:58]} 7. h3 {[%clk 0:03:01]}  Bg7 {[%clk 0:02:58]} 8. Nf3 {[%clk 0:03:01]}  O-O {[%clk 0:02:59]} 9. Bd3 {[%clk 0:03:01]}  b5 {[%clk 0:02:59]} 10. Bxb5 {[%clk 0:02:59]}  Nxe4 {[%clk 0:02:59]} 11. Nxe4 {[%clk 0:03:00]}  Qa5+ {[%clk 0:03:00]} 12. Nfd2 {[%clk 0:03:00]}  Qxb5 {[%clk 0:03:00]} 13. Nxd6 {[%clk 0:03:01]}  Qa6 {[%clk 0:03:01]} 14. N2c4 {[%clk 0:03:01]}  Nd7 {[%clk 0:03:01]} 15. O-O {[%clk 0:03:01]}  Ne5 {[%clk 0:03:02]} 16. Nxc8 {[%clk 0:02:58]}  Rfxc8 {[%clk 0:03:02]} 17. Nxe5 {[%clk 0:02:56]}  Bxe5 {[%clk 0:03:02]} 18. Re1 {[%clk 0:02:56]}  Re8 {[%clk 0:03:00]} 19. Bg5 {[%clk 0:02:23]}  Bxb2 {[%clk 0:02:56]} 20. Rxe8+ {[%clk 0:02:21]}  Rxe8 {[%clk 0:02:55]} 21. d6 {[%clk 0:02:21]}  f6 {[%clk 0:02:06]} 22. Qb3+ {[%clk 0:02:21]}  c4 {[%clk 0:02:05]} 23. Qxb2 {[%clk 0:02:03]}  fxg5 {[%clk 0:02:05]} 24. Qf6 {[%clk 0:01:58]}  Qc6 {[%clk 0:02:01]} 25. Rd1 {[%clk 0:01:55]}  Qd7 {[%clk 0:01:18]} 26. Qxg5 {[%clk 0:01:54]}  Re6 {[%clk 0:01:16]} 27. Qd5 {[%clk 0:01:50]}  Kf7 {[%clk 0:01:05]} 28. Qxc4 {[%clk 0:01:50]}  h6 {[%clk 0:01:04]} 29. g4 {[%clk 0:01:32]}  Ke8 {[%clk 0:01:01]} 30. Qd4 {[%clk 0:01:25]}  Kd8 {[%clk 0:00:57]} 31. Qh8+ {[%clk 0:01:07]}  Qe8 {[%clk 0:00:57]} 32. Qc3 {[%clk 0:01:05]}  Qd7 {[%clk 0:00:51]} 33. Qb4 {[%clk 0:01:00]}  Ke8 {[%clk 0:00:44]} 34. Qb2 {[%clk 0:00:56]}  Kf7 {[%clk 0:00:20]} 35. Qh8 {[%clk 0:00:51]}  Qe8 {[%clk 0:00:18]} 36. Qxe8+ {[%clk 0:00:36]}  Kxe8 {[%clk 0:00:19]} 37. Rd3 {[%clk 0:00:33]}  Kd7 {[%clk 0:00:18]} 38. Ra3 {[%clk 0:00:33]}  Rxd6 {[%clk 0:00:13]} 39. Rxa7+ {[%clk 0:00:33]}  Ke6 {[%clk 0:00:13]} 40. Rh7 {[%clk 0:00:30]}  Ke5 {[%clk 0:00:11]} 41. Rxh6 {[%clk 0:00:30]}  Kf4 {[%clk 0:00:11]} 42. Kg2 {[%clk 0:00:28]}  Ra6 {[%clk 0:00:12]} 43. Rh8 {[%clk 0:00:23]}  Rxa2 {[%clk 0:00:12]} 44. Rf8+ {[%clk 0:00:23]}  Kg5 {[%clk 0:00:12]} 45. Kg3 {[%clk 0:00:23]}  Ra3+ {[%clk 0:00:13]} 46. f3 {[%clk 0:00:23]}  Ra4 {[%clk 0:00:12]} 47. Rf7 {[%clk 0:00:22]}  Kh6 {[%clk 0:00:12]} 48. h4 {[%clk 0:00:22]}  g5 {[%clk 0:00:11]} 49. Rf6+ {[%clk 0:00:22]}  Kg7 {[%clk 0:00:12]} 50. hxg5 {[%clk 0:00:22]}  Ra5 {[%clk 0:00:13]} 51. Rf5 {[%clk 0:00:22]}  Ra1 {[%clk 0:00:14]} 52. Rb5 {[%clk 0:00:22]}  Rg1+ {[%clk 0:00:14]} 53. Kf4 {[%clk 0:00:22]}  Ra1 {[%clk 0:00:15]} 54. Kf5 {[%clk 0:00:23]}  Ra8 {[%clk 0:00:14]} 55. Rb7+ {[%clk 0:00:21]}  Kg8 {[%clk 0:00:13]} 56. f4 {[%clk 0:00:18]}  Rf8+ {[%clk 0:00:14]} 57. Kg6 {[%clk 0:00:18]}  Rd8 {[%clk 0:00:11]} 58. f5 {[%clk 0:00:19]}  Ra8 {[%clk 0:00:08]} 59. f6 {[%clk 0:00:19]}  Rf8 {[%clk 0:00:07]} 60. Rg7+ {[%clk 0:00:18]}  Kh8 {[%clk 0:00:08]} 61. Rh7+ {[%clk 0:00:19]}  Kg8 {[%clk 0:00:09]} 62. f7+ {[%clk 0:00:19]} 1-0


[Site "https://www.chess.com"]

[Event "Titled Tuesday Blitz June 14 Late 2022"]
[White "Injac, Teodora"]
[Black "Florescu, Codrut-Constantin"]
[WhiteFideId "932400"]
[BlackFideId "1202200"]
[WhiteElo "2278"]
[BlackElo "2191"]
[Result "1-0"]
[Round "06"]
[TimeControl "180+1"]
[Date "2022.06.14"]
[WhiteClock "0:00:10"]
[BlackClock "0:00:12"]

1. Nf3 {[%clk 0:03:00]}  d5 {[%clk 0:02:59]} 2. g3 {[%clk 0:03:00]}  Nf6 {[%clk 0:02:58]} 3. Bg2 {[%clk 0:03:01]}  e6 {[%clk 0:02:59]} 4. O-O {[%clk 0:03:00]}  Be7 {[%clk 0:02:59]} 5. c4 {[%clk 0:02:59]}  O-O {[%clk 0:02:58]} 6. d4 {[%clk 0:02:59]}  c6 {[%clk 0:02:58]} 7. Qc2 {[%clk 0:02:58]}  Nbd7 {[%clk 0:02:58]} 8. Nbd2 {[%clk 0:02:59]}  b6 {[%clk 0:02:59]} 9. e4 {[%clk 0:02:59]}  Bb7 {[%clk 0:02:59]} 10. e5 {[%clk 0:02:57]}  Ne8 {[%clk 0:02:59]} 11. cxd5 {[%clk 0:02:57]}  exd5 {[%clk 0:02:58]} 12. Re1 {[%clk 0:02:48]}  Nc7 {[%clk 0:02:57]} 13. h4 {[%clk 0:02:47]}  Ne6 {[%clk 0:02:53]} 14. Nf1 {[%clk 0:02:37]}  c5 {[%clk 0:02:52]} 15. Be3 {[%clk 0:02:31]}  Rc8 {[%clk 0:02:50]} 16. Qd2 {[%clk 0:02:12]}  a5 {[%clk 0:02:47]} 17. a3 {[%clk 0:02:11]}  cxd4 {[%clk 0:02:43]} 18. Bxd4 {[%clk 0:02:11]}  Ndc5 {[%clk 0:02:39]} 19. Qe3 {[%clk 0:01:57]}  Nxd4 {[%clk 0:02:24]} 20. Nxd4 {[%clk 0:01:56]}  Ne6 {[%clk 0:02:25]} 21. Nf5 {[%clk 0:01:31]}  d4 {[%clk 0:02:17]} 22. Nxd4 {[%clk 0:01:07]}  Nxd4 {[%clk 0:02:16]} 23. Bxb7 {[%clk 0:01:07]}  Nc2 {[%clk 0:02:14]} 24. Qe4 {[%clk 0:00:56]}  Rc7 {[%clk 0:02:01]} 25. Rad1 {[%clk 0:00:55]}  Qb8 {[%clk 0:02:00]} 26. Re2 {[%clk 0:00:49]}  Nxa3 {[%clk 0:01:55]} 27. Bd5 {[%clk 0:00:46]}  Nb5 {[%clk 0:01:43]} 28. Ne3 {[%clk 0:00:47]}  g6 {[%clk 0:01:26]} 29. h5 {[%clk 0:00:46]}  Kg7 {[%clk 0:01:16]} 30. hxg6 {[%clk 0:00:45]}  fxg6 {[%clk 0:01:15]} 31. Bc4 {[%clk 0:00:30]}  Na7 {[%clk 0:01:10]} 32. Nd5 {[%clk 0:00:30]}  Bc5 {[%clk 0:00:28]} 33. Nxc7 {[%clk 0:00:29]}  Qxc7 {[%clk 0:00:29]} 34. Kg2 {[%clk 0:00:28]}  Nc6 {[%clk 0:00:28]} 35. Bd5 {[%clk 0:00:26]}  Ne7 {[%clk 0:00:27]} 36. Be6 {[%clk 0:00:24]}  Qc6 {[%clk 0:00:20]} 37. Qxc6 {[%clk 0:00:21]}  Nxc6 {[%clk 0:00:20]} 38. Rd7+ {[%clk 0:00:21]}  Kh6 {[%clk 0:00:20]} 39. f4 {[%clk 0:00:11]}  Nd4 {[%clk 0:00:20]} 40. Re1 {[%clk 0:00:11]}  g5 {[%clk 0:00:14]} 41. f5 {[%clk 0:00:11]}  g4 {[%clk 0:00:13]} 42. Rh1+ {[%clk 0:00:10]}  Kg5 {[%clk 0:00:12]} 43. Rg7# {[%clk 0:00:10]} 1-0


[Site "https://www.chess.com"]

[Event "Titled Tuesday Blitz June 14 Late 2022"]
[White "Janaszak, Dawid"]
[Black "Roman, Rodrigo"]
[WhiteFideId "1119206"]
[BlackFideId "3701220"]
[WhiteElo "2199"]
[BlackElo "2001"]
[Result "0-1"]
[Round "06"]
[TimeControl "180+1"]
[Date "2022.06.15"]
[WhiteClock "0:00:07"]
[BlackClock "0:00:12"]

1. d4 {[%clk 0:03:00]}  e6 {[%clk 0:02:50]} 2. e4 {[%clk 0:02:58]}  d5 {[%clk 0:02:50]} 3. Bd3 {[%clk 0:02:58]}  Nf6 {[%clk 0:02:46]} 4. e5 {[%clk 0:02:58]}  Nfd7 {[%clk 0:02:47]} 5. Ne2 {[%clk 0:02:59]}  c5 {[%clk 0:02:47]} 6. c3 {[%clk 0:02:59]}  Nc6 {[%clk 0:02:48]} 7. a3 {[%clk 0:02:55]}  a5 {[%clk 0:02:42]} 8. O-O {[%clk 0:02:38]}  c4 {[%clk 0:02:42]} 9. Bc2 {[%clk 0:02:38]}  b5 {[%clk 0:02:42]} 10. Nf4 {[%clk 0:02:26]}  g6 {[%clk 0:02:38]} 11. Qg4 {[%clk 0:02:21]}  Qe7 {[%clk 0:02:28]} 12. Nd2 {[%clk 0:02:16]}  h5 {[%clk 0:02:28]} 13. Qg3 {[%clk 0:02:15]}  g5 {[%clk 0:02:27]} 14. Ne2 {[%clk 0:02:02]}  h4 {[%clk 0:02:27]} 15. Qg4 {[%clk 0:01:56]}  h3 {[%clk 0:01:55]} 16. g3 {[%clk 0:01:50]}  f5 {[%clk 0:01:52]} 17. exf6 {[%clk 0:01:50]}  Nxf6 {[%clk 0:01:52]} 18. Qxg5 {[%clk 0:01:43]}  Bh6 {[%clk 0:01:46]} 19. Qg6+ {[%clk 0:01:33]}  Kd8 {[%clk 0:01:36]} 20. Nf3 {[%clk 0:01:32]}  Bxc1 {[%clk 0:01:33]} 21. Rfxc1 {[%clk 0:01:27]}  Bd7 {[%clk 0:01:33]} 22. Qg5 {[%clk 0:01:06]}  Kc7 {[%clk 0:01:27]} 23. Ne5 {[%clk 0:01:06]}  Rag8 {[%clk 0:01:19]} 24. Ng6 {[%clk 0:01:04]}  Rxg6 {[%clk 0:00:56]} 25. Qxg6 {[%clk 0:01:01]}  Rg8 {[%clk 0:00:50]} 26. Qh6 {[%clk 0:00:59]}  Ng4 {[%clk 0:00:45]} 27. Qf4+ {[%clk 0:00:56]}  e5 {[%clk 0:00:45]} 28. dxe5 {[%clk 0:00:55]}  Rf8 {[%clk 0:00:44]} 29. e6+ {[%clk 0:00:29]}  Rxf4 {[%clk 0:00:43]} 30. Nxf4 {[%clk 0:00:30]}  Bxe6 {[%clk 0:00:38]} 31. Re1 {[%clk 0:00:31]}  Nce5 {[%clk 0:00:35]} 32. Re2 {[%clk 0:00:20]}  Bf7 {[%clk 0:00:30]} 33. Kh1 {[%clk 0:00:15]}  Qc5 {[%clk 0:00:29]} 34. Rf1 {[%clk 0:00:13]}  Nf3 {[%clk 0:00:21]} 35. Nxh3 {[%clk 0:00:12]}  d4 {[%clk 0:00:20]} 36. Be4 {[%clk 0:00:12]}  d3 {[%clk 0:00:19]} 37. Bxf3 {[%clk 0:00:11]}  dxe2 {[%clk 0:00:19]} 38. Bxe2 {[%clk 0:00:12]}  Bd5+ {[%clk 0:00:19]} 39. Kg1 {[%clk 0:00:12]}  Qc6 {[%clk 0:00:17]} 40. Nf4 {[%clk 0:00:12]}  Bf3 {[%clk 0:00:15]} 41. Re1 {[%clk 0:00:09]}  Ne5 {[%clk 0:00:14]} 42. h4 {[%clk 0:00:07]}  Qe4 {[%clk 0:00:12]} 43. Kf1 {[%clk 0:00:06]}  Bxe2+ {[%clk 0:00:12]} 44. Rxe2 {[%clk 0:00:07]}  Qh1# {[%clk 0:00:12]} 0-1


[Site "https://www.chess.com"]

[Event "Titled Tuesday Blitz June 14 Late 2022"]
[White "Kalajzic, Ivan"]
[Black "Uskov, Artem"]
[WhiteFideId "14506378"]
[BlackFideId "34254854"]
[WhiteElo "2163"]
[BlackElo "2335"]
[Result "1/2-1/2"]
[Round "06"]
[TimeControl "180+1"]
[Date "2022.06.15"]
[WhiteClock "0:00:15"]
[BlackClock "0:00:17"]

1. d4 {[%clk 0:03:00]}  Nf6 {[%clk 0:02:56]} 2. Nc3 {[%clk 0:03:01]}  d5 {[%clk 0:02:55]} 3. Bg5 {[%clk 0:03:00]}  g6 {[%clk 0:02:48]} 4. Qd2 {[%clk 0:03:00]}  c6 {[%clk 0:02:45]} 5. O-O-O {[%clk 0:02:59]}  b5 {[%clk 0:02:43]} 6. f3 {[%clk 0:02:52]}  Bg7 {[%clk 0:02:22]} 7. Bh6 {[%clk 0:02:48]}  O-O {[%clk 0:02:20]} 8. Bxg7 {[%clk 0:02:48]}  Kxg7 {[%clk 0:02:17]} 9. e4 {[%clk 0:02:35]}  b4 {[%clk 0:02:12]} 10. Na4 {[%clk 0:02:35]}  dxe4 {[%clk 0:02:10]} 11. Qxb4 {[%clk 0:02:35]}  Na6 {[%clk 0:02:05]} 12. Bxa6 {[%clk 0:02:32]}  Bxa6 {[%clk 0:02:06]} 13. Nc5 {[%clk 0:02:29]}  exf3 {[%clk 0:01:58]} 14. Nxf3 {[%clk 0:02:17]}  Be2 {[%clk 0:01:56]} 15. Rd2 {[%clk 0:02:09]}  Bxf3 {[%clk 0:01:56]} 16. gxf3 {[%clk 0:02:10]}  a5 {[%clk 0:01:56]} 17. Qc4 {[%clk 0:02:05]}  e6 {[%clk 0:01:53]} 18. Ne4 {[%clk 0:01:59]}  Nd5 {[%clk 0:01:52]} 19. Qc5 {[%clk 0:01:46]}  a4 {[%clk 0:01:49]} 20. c4 {[%clk 0:01:41]}  Nf6 {[%clk 0:01:38]} 21. Qe5 {[%clk 0:01:41]}  Ra5 {[%clk 0:01:37]} 22. c5 {[%clk 0:01:41]}  Ra7 {[%clk 0:01:28]} 23. h4 {[%clk 0:01:34]}  Rd7 {[%clk 0:01:28]} 24. Nd6 {[%clk 0:01:34]}  Kg8 {[%clk 0:01:22]} 25. h5 {[%clk 0:01:31]}  Ne8 {[%clk 0:01:22]} 26. hxg6 {[%clk 0:01:28]}  fxg6 {[%clk 0:01:19]} 27. Qxe6+ {[%clk 0:01:24]}  Kh8 {[%clk 0:01:19]} 28. Qxg6 {[%clk 0:01:17]}  Nxd6 {[%clk 0:01:18]} 29. cxd6 {[%clk 0:01:16]}  Rg7 {[%clk 0:01:17]} 30. Qe4 {[%clk 0:01:02]}  Qxd6 {[%clk 0:01:15]} 31. Rdh2 {[%clk 0:01:02]}  Rff7 {[%clk 0:01:08]} 32. Rh3 {[%clk 0:00:40]}  Qc7 {[%clk 0:01:04]} 33. Qe5 {[%clk 0:00:39]}  Qxe5 {[%clk 0:00:54]} 34. dxe5 {[%clk 0:00:40]}  Rf5 {[%clk 0:00:55]} 35. Re1 {[%clk 0:00:38]}  Re7 {[%clk 0:00:55]} 36. Rh6 {[%clk 0:00:36]}  c5 {[%clk 0:00:54]} 37. e6 {[%clk 0:00:35]}  Rxf3 {[%clk 0:00:53]} 38. Rh5 {[%clk 0:00:31]}  c4 {[%clk 0:00:49]} 39. Rc5 {[%clk 0:00:31]}  Rf4 {[%clk 0:00:49]} 40. Kc2 {[%clk 0:00:30]}  Kg7 {[%clk 0:00:46]} 41. Kc3 {[%clk 0:00:30]}  Kf6 {[%clk 0:00:39]} 42. Rxc4 {[%clk 0:00:30]}  Rxc4+ {[%clk 0:00:26]} 43. Kxc4 {[%clk 0:00:31]}  Rxe6 {[%clk 0:00:26]} 44. Rh1 {[%clk 0:00:31]}  Re4+ {[%clk 0:00:25]} 45. Kb5 {[%clk 0:00:30]}  Kg6 {[%clk 0:00:23]} 46. b4 {[%clk 0:00:29]}  axb3 {[%clk 0:00:16]} 47. axb3 {[%clk 0:00:30]}  h5 {[%clk 0:00:17]} 48. b4 {[%clk 0:00:29]}  h4 {[%clk 0:00:17]} 49. Kc5 {[%clk 0:00:29]}  Kg5 {[%clk 0:00:17]} 50. b5 {[%clk 0:00:29]}  Kg4 {[%clk 0:00:17]} 51. b6 {[%clk 0:00:30]}  Re2 {[%clk 0:00:16]} 52. Rb1 {[%clk 0:00:28]}  Re8 {[%clk 0:00:17]} 53. b7 {[%clk 0:00:26]}  Rb8 {[%clk 0:00:17]} 54. Kc6 {[%clk 0:00:26]}  h3 {[%clk 0:00:17]} 55. Kc7 {[%clk 0:00:27]}  Rxb7+ {[%clk 0:00:17]} 56. Kxb7 {[%clk 0:00:28]}  h2 {[%clk 0:00:16]} 57. Kc6 {[%clk 0:00:27]}  Kg3 {[%clk 0:00:17]} 58. Kd5 {[%clk 0:00:28]}  Kg2 {[%clk 0:00:17]} 59. Rb2+ {[%clk 0:00:28]}  Kg1 {[%clk 0:00:18]} 60. Ke5 {[%clk 0:00:14]}  h1=Q {[%clk 0:00:16]} 61. Rb1+ {[%clk 0:00:14]}  Kh2 {[%clk 0:00:16]} 62. Rxh1+ {[%clk 0:00:15]}  Kxh1 {[%clk 0:00:17]} 1/2-1/2


[Site "https://www.chess.com"]